bitfinex-derivatives/quotes_ETHF0:USTF0_20241020
["timestamp","ask_amount","ask_price","bid_price","bid_amount"]
[1729429423507,0.37759,2648.5,2648.4,0.4171]
[1729429423710,0.37759,2648.5,2648.4,1.405474]
[1729429424116,0.37759,2648.5,2648.4,0.4171]
[1729429428220,41.74389,2648.8,2648.4,0.7947]
[1729429428221,40.8,2648.8,2648.4,0.7947]
[1729429428522,0.37759,2648.5,2648.4,0.7947]
[1729429428821,0.37759,2648.5,2648.4,0.4171]
[1729429429214,0.37759,2648.5,2648.4,0.7947]
[1729429429620,0.37759,2648.5,2648.4,0.4171]
[1729429432621,0.37759,2648.5,2648.4,0.7947]
[1729429433218,0.37759,2648.5,2648.4,0.4171]
[1729429434424,0.37757,2648.7,2648.6,0.37757]
[1729429434618,4.15157,2649.1,2648.5,0.988374]
[1729429434822,0.37757,2648.6,2648.5,1.365944]
[1729429435320,0.37757,2648.6,2648.5,0.988374]
[1729429435510,0.94385,2648.9,2648.4,0.988374]
[1729429435817,0.37759,2648.5,2648.4,0.988374]
[1729429436415,0.4276,2648.8,2648.4,0.988374]
[1729429436726,0.37755,2648.8,2648.6,0.37756]
[1729429437030,40.8,2649.2,2648.7,1.407374]
[1729429437322,0.94363,2649.5,2648.9,4.19525941]
[1729429437521,0.37749,2649.2,2649.0,1.36496941]
[1729429437824,0.37749,2649.2,2649.1,0.419]
[1729429438022,0.37749,2649.2,2649.1,1.40645941]
[1729429439332,0.37749,2649.2,2649.1,2.94616245]
[1729429439528,0.37749,2649.2,2649.1,2.94615795]
[1729429439916,0.37749,2649.2,2649.1,2.94615864]
[1729429441528,0.37749,2649.2,2649.1,0.419]
[1729429441929,0.37749,2649.2,2649.1,1.95875432]
[1729429442225,0.37746,2649.4,2649.2,0.37748]
[1729429442433,0.37746,2649.4,2649.3,1.76045864]
[1729429442927,0.37746,2649.4,2649.3,5.53485864]
[1729429443130,0.37746,2649.4,2649.3,1.76045864]
[1729429443519,0.37746,2649.4,2649.3,3.30006585]
[1729429443719,0.37746,2649.4,2649.3,5.53485864]
[1729429443916,0.37746,2649.4,2649.3,7.07445141]
[1729429445630,0.37746,2649.4,2649.3,7.57097876]
[1729429446229,44.0078,2649.8,2649.3,7.94844876]
[1729429446529,0.37745,2649.5,2649.4,0.98718289]
[1729429447334,3.2078,2649.8,2649.4,1.36464289]
[1729429447632,0.37743,2649.6,2649.5,0.4001]
[1729429450229,0.37742,2649.7,2649.5,0.77754]
[1729429450729,0.37742,2649.7,2649.6,3.2078]
[1729429450932,0.37742,2649.7,2649.6,3.6161]
[1729429451135,0.37742,2649.7,2649.6,0.4083]
[1729429451825,0.37742,2649.7,2649.6,0.8249]
[1729429469442,0.37744,2649.5,2649.4,3.2078]
[1729429469641,0.37744,2649.5,2649.4,4.01096]
[1729429470749,0.37744,2649.5,2649.4,0.80316]
[1729429470950,0.37744,2649.5,2649.4,4.01096]
[1729429471247,0.37744,2649.5,2649.4,0.80316]
[1729429471549,0.37744,2649.5,2649.4,4.01096]
[1729429472843,0.37744,2649.5,2649.4,0.80316]
[1729429473043,0.37744,2649.5,2649.4,4.01096]
[1729429473755,0.37744,2649.5,2649.4,0.80316]
[1729429474054,0.37744,2649.5,2649.4,4.01096]
[1729429474748,0.37744,2649.5,2649.4,4.78596]
[1729429476147,0.8154,2649.6,2649.4,4.78596]
[1729429476451,41.2214,2650.0,2649.4,4.4085]
[1729429476751,0.37741,2649.8,2649.6,1.36460289]
[1729429477051,0.37741,2649.8,2649.7,0.4122]
[1729429477360,0.37741,2649.8,2649.7,0.8117]
[1729429478151,0.37741,2649.8,2649.7,1.79888289]
[1729429478459,0.37741,2649.8,2649.7,0.8117]
[1729429479256,0.37741,2649.8,2649.7,1.79888289]
[1729429480355,0.37741,2649.8,2649.7,2.35257812]
[1729429480556,0.37741,2649.8,2649.7,3.34072761]
[1729429480945,0.37741,2649.8,2649.7,2.35257812]
[1729429481146,0.37741,2649.8,2649.7,3.83656411]
[1729429482147,0.37741,2649.8,2649.7,2.35257812]
[1729429482346,0.37741,2649.8,2649.7,2.4705782]
[1729429483247,0.37741,2649.8,2649.7,2.35257812]
[1729429483448,0.37741,2649.8,2649.7,4.45053328]
[1729429484056,0.37741,2649.8,2649.7,2.47057771]
[1729429484480,0.37741,2649.8,2649.7,7.53747271]
[1729429484693,0.37741,2649.8,2649.7,3.83725616]
[1729429484858,0.37741,2649.8,2649.7,2.35257812]
[1729429485261,0.3774,2649.8,2649.7,4.21466616]
[1729429485448,0.3774,2649.9,2649.7,4.21466616]
[1729429485660,0.3774,2649.9,2649.8,0.9899824]
[1729429487064,0.3774,2649.9,2649.8,2.53367398]
[1729429487469,0.3774,2649.9,2649.8,3.02835644]
[1729429489256,0.3774,2649.9,2649.8,3.40575644]
[1729429490357,0.3774,2649.9,2649.8,3.02835644]
[1729429491570,0.37738,2650.0,2649.8,3.40574644]
[1729429491773,0.37738,2650.0,2649.9,1.66157624]
[1729429492173,0.37738,2650.0,2649.9,3.14644556]
[1729429492572,0.37738,2650.0,2649.9,3.64155675]
[1729429492979,0.79738,2650.0,2649.9,3.02846577]
[1729429499580,0.37738,2650.0,2649.9,3.02846577]
[1729429499885,0.37737,2650.0,2649.9,0.98993377]
[1729429506488,0.37737,2650.0,2649.9,3.42063466]
[1729429506682,0.37737,2650.0,2649.9,3.91573337]
[1729429506884,0.37737,2650.0,2649.9,4.03372561]
[1729429507081,0.37737,2650.0,2649.9,4.033725]
[1729429507490,0.37737,2650.0,2649.9,2.05376943]
[1729429509792,0.37737,2650.0,2649.9,3.5385158]
[1729429510686,0.37737,2650.0,2649.9,3.42052417]
[1729429511095,0.37737,2650.0,2649.9,3.53851796]
[1729429511285,0.37737,2650.0,2649.9,3.14391796]
[1729429511482,4.15097,2650.0,2649.9,0.98987026]
[1729429511688,4.15097,2650.0,2649.7,0.98987026]
[1729429511689,3.7736,2650.0,2649.7,0.98987026]
[1729429511902,0.3774,2649.8,2649.7,0.98987026]
[1729429512195,41.1774,2649.8,2649.7,0.98987026]
[1729429512390,44.5736,2649.8,2649.5,0.98987026]
[1729429512589,0.37743,2649.6,2649.5,0.98987026]
[1729429512993,0.80533,2649.6,2649.5,2.53035417]
[1729429513193,0.80533,2649.6,2649.5,2.53034443]
[1729429513392,0.37743,2649.6,2649.5,3.02523028]
[1729429513997,0.37743,2649.6,2649.5,2.03593783]
[1729429514200,1.23392,2649.7,2649.5,2.03593783]
[1729429514403,1.23392,2649.7,2649.6,3.02512013]
[1729429514702,0.80602,2649.7,2649.6,3.02481609]
[1729429515599,0.80602,2649.7,2649.6,3.40224609]
[1729429517300,0.80602,2649.7,2649.6,3.02481609]
[1729429519305,0.80602,2649.7,2649.6,1.48463622]
[1729429519513,0.80602,2649.7,2649.6,1.54006933]
[1729429519696,0.80602,2649.7,2649.6,3.02470555]
[1729429519890,0.80602,2649.7,2649.6,3.40213555]
[1729429520199,0.80602,2649.7,2649.6,1.91749933]
[1729429520395,0.80602,2649.7,2649.6,1.54006933]
[1729429520596,0.80602,2649.7,2649.6,3.02470555]
[1729429521098,0.80602,2649.7,2649.6,1.54006933]
[1729429521492,0.80602,2649.7,2649.6,3.02470555]
[1729429521690,0.37742,2649.7,2649.6,3.02470555]
[1729429521896,0.37743,2649.6,2649.5,1.78670087]
[1729429522202,0.37743,2649.6,2649.5,2.94929897]
[1729429523005,0.37743,2649.6,2649.5,2.94924379]
[1729429524007,0.37743,2649.6,2649.5,1.40926087]
[1729429524410,0.37743,2649.6,2649.5,0.4196]
[1729429524806,0.3926,2649.7,2649.4,1.41706087]
[1729429525002,0.37744,2649.5,2649.4,1.41706087]
[1729429525202,0.37744,2649.5,2649.4,0.4274]
[1729429525402,0.37744,2649.5,2649.4,1.41706087]
[1729429525701,0.37744,2649.5,2649.4,0.4274]
[1729429526303,0.37744,2649.5,2649.4,1.41706087]
[1729429529716,0.37744,2649.6,2649.4,3.82874986]
[1729429529923,0.37744,2649.6,2649.5,2.06746492]
[1729429530214,0.3774,2649.9,2649.6,0.37743]
[1729429530415,0.3774,2649.9,2649.7,6.99955832]
[1729429530717,0.37739,2649.9,2649.8,3.02294832]
[1729429530912,0.37738,2650.0,2649.8,3.40034832]
[1729429531109,0.37738,2650.0,2649.9,1.94933755]
[1729429531609,0.37738,2650.0,2649.9,3.43302708]
[1729429533513,0.37738,2650.0,2649.9,3.43299562]
[1729429536821,0.37738,2650.0,2649.9,0.4102]
[1729429543722,0.37738,2650.0,2649.9,3.618]
[1729429545016,0.37738,2650.0,2649.9,6.64057937]
[1729429545417,0.37737,2650.0,2649.9,7.01795937]
[1729429545822,0.37737,2650.0,2649.9,6.64057937]
[1729429546121,0.37737,2650.0,2649.9,5.15688984]
[1729429546511,0.37737,2650.0,2649.9,6.64057937]
[1729429546709,0.37737,2650.0,2649.9,5.15688984]
[1729429546919,0.37737,2650.0,2649.9,6.64057937]
[1729429547920,0.37737,2650.0,2649.9,5.1568656]
[1729429548115,0.37737,2650.0,2649.9,6.14573702]
[1729429549714,0.37737,2650.0,2649.9,5.1569038]
[1729429550712,0.37737,2650.0,2649.9,1.9491038]
[1729429552312,0.37737,2650.0,2649.9,2.93794518]
[1729429552716,0.37737,2650.0,2649.9,2.9378824]
[1729429553425,0.37737,2650.0,2649.9,1.94904102]
[1729429553623,0.37737,2650.0,2649.9,2.93789727]
[1729429553923,0.37737,2650.0,2649.9,1.94904102]
[1729429555021,0.37737,2650.0,2649.9,3.43273055]
[1729429556026,0.37737,2650.0,2649.9,2.93789501]
[1729429557518,0.37737,2650.0,2649.9,2.93789796]
[1729429558226,0.37737,2650.0,2649.9,1.94904397]
[1729429559628,0.37737,2650.0,2649.9,3.4327335]
[1729429560025,0.37737,2650.0,2649.9,0.4102]
[1729429560423,0.37737,2650.0,2649.9,0.78759]
[1729429560922,0.37737,2650.0,2649.9,0.4102]
[1729429570629,0.37737,2650.0,2649.9,3.43320251]
[1729429571937,0.37737,2650.0,2649.9,1.89371124]
[1729429573339,0.37737,2650.0,2649.9,1.60150762]
[1729429573538,0.37737,2650.0,2649.9,1.60150701]
[1729429574340,0.37739,2649.9,2649.8,0.7897]
[1729429574541,0.37739,2649.9,2649.8,0.90769567]
[1729429575634,0.37739,2649.9,2649.8,5.65691211]
[1729429575837,0.37739,2649.9,2649.8,5.53891644]
[1729429576033,0.37739,2649.9,2649.8,5.65691202]
[1729429576334,0.37739,2649.9,2649.8,7.63792242]
[1729429576539,0.37739,2649.9,2649.8,7.26052242]
[1729429577235,0.37739,2649.9,2649.8,10.34466471]
[1729429577437,1.74915,2650.3,2649.8,10.72204799]
[1729429577736,0.37734,2650.2,2650.1,0.9909206]
[1729429578344,4.15094,2650.2,2650.1,0.9909206]
[1729429580246,3.7736,2650.2,2650.0,0.9909206]
[1729429580540,0.37736,2650.1,2650.0,0.99092747]
[1729429582347,0.37736,2650.1,2650.0,1.10893012]
[1729429582745,0.37736,2650.1,2650.0,3.14627243]
[1729429583353,0.37736,2650.1,2650.0,3.14627038]
[1729429584750,0.37736,2650.1,2650.0,2.08808948]
[1729429585645,0.37736,2650.1,2650.0,4.06909988]
[1729429586735,0.37736,2650.1,2650.0,4.06888304]
[1729429587242,0.37736,2650.1,2650.0,2.08787264]
[1729429587840,0.37736,2650.1,2650.0,4.06888304]
[1729429589244,0.37736,2650.1,2650.0,1.96987204]
[1729429589448,0.37736,2650.1,2650.0,3.95088244]
[1729429590752,0.37736,2650.1,2650.0,2.96056902]
[1729429590948,0.37736,2650.1,2650.0,0.99069698]
[1729429591156,0.37737,2650.0,2649.9,1.40699698]
[1729429591453,0.79747,2650.0,2649.9,0.99069698]
[1729429591643,0.3774,2649.8,2649.7,0.99069698]
[1729429591845,0.37742,2649.7,2649.6,0.99069698]
[1729429592046,0.37743,2649.6,2649.5,4.97149698]
[1729429592249,0.79753,2649.6,2649.5,4.97149698]
[1729429593551,0.37743,2649.6,2649.5,3.9808]
[1729429593750,0.37743,2649.6,2649.5,5.34893698]
[1729429593950,0.37743,2649.7,2649.5,5.34893698]
[1729429594256,0.37743,2649.7,2649.6,2.53045465]
[1729429594442,0.37743,2649.7,2649.6,3.40397511]
[1729429594852,0.37743,2649.7,2649.6,3.02654511]
[1729429595459,0.37743,2649.7,2649.6,3.40397511]
[1729429595759,0.37743,2649.7,2649.6,3.02654511]
[1729429596047,0.37743,2649.7,2649.6,1.48604548]
[1729429596254,0.37743,2649.7,2649.6,2.53015372]
[1729429596454,0.37743,2649.7,2649.6,1.54034338]
[1729429596753,0.37743,2649.7,2649.6,2.53015141]
[1729429597451,0.37743,2649.7,2649.6,2.64815763]
[1729429597847,0.37743,2649.7,2649.6,1.6583496]
[1729429600957,0.37743,2649.7,2649.6,1.65729803]
[1729429601352,0.37743,2649.7,2649.6,3.02376758]
[1729429603657,1.34046,2650.0,2649.6,0.98961004]
[1729429603658,0.4274,2649.9,2649.6,0.98961004]
[1729429603956,0.37742,2649.7,2649.6,0.98961004]
[1729429604454,0.37743,2649.6,2649.5,0.98961004]
[1729429604653,0.37743,2649.6,2649.5,2.52863218]
[1729429604654,0.79593,2649.6,2649.5,2.52863218]
[1729429604855,0.79593,2649.6,2649.5,3.02349791]
[1729429605248,0.79593,2649.6,2649.5,1.53902214]
[1729429605760,0.79593,2649.6,2649.5,1.53889227]
[1729429607358,0.79593,2649.6,2649.5,2.52821954]
[1729429609256,0.79593,2649.6,2649.5,0.98932727]
[1729429610356,0.37744,2649.5,2649.4,1.78592727]
[1729429610557,0.37744,2649.5,2649.4,3.32442328]
[1729429610751,0.37744,2649.5,2649.4,1.78592727]
[1729429611056,0.78104,2649.5,2649.4,1.39112727]
[1729429611259,1.19894,2649.5,2649.4,1.39112727]
[1729429611957,1.19894,2649.5,2649.4,0.4018]
[1729429612559,0.37747,2649.3,2649.2,0.98932727]
[1729429612747,0.37747,2649.3,2649.2,1.41432727]
[1729429612950,0.37747,2649.3,2649.2,0.425]
[1729429615251,0.37747,2649.3,2649.2,0.80249]
[1729429617561,0.37747,2649.3,2649.2,0.425]
[1729429617762,0.37747,2649.3,2649.2,1.41432727]
[1729429618062,0.37747,2649.3,2649.2,0.425]
[1729429618452,0.37747,2649.3,2649.2,1.79181727]
[1729429619263,0.37747,2649.3,2649.2,0.425]
[1729429619652,0.37747,2649.3,2649.2,1.41432727]
[1729429620054,0.37747,2649.3,2649.2,3.44688834]
[1729429621461,0.37747,2649.3,2649.2,3.82437834]
[1729429621765,0.37747,2649.3,2649.2,3.44688834]
[1729429623061,0.4185,2649.6,2649.2,3.44688834]
[1729429623366,0.37747,2649.4,2649.3,1.53589458]
[1729429623561,0.37747,2649.4,2649.3,2.31156458]
[1729429623960,0.37747,2649.4,2649.3,1.93409458]
[1729429624664,0.37747,2649.4,2649.3,3.41857035]
[1729429624964,0.37747,2649.4,2649.3,1.93409458]
[1729429625458,0.37747,2649.4,2649.3,3.41857035]
[1729429627357,0.37745,2649.5,2649.3,7.57043035]
[1729429627554,0.37745,2649.5,2649.4,1.91335458]
[1729429628153,0.37745,2649.5,2649.4,0.37746]
[1729429628358,0.37744,2649.6,2649.4,0.98868713]
[1729429628557,0.37744,2649.6,2649.5,4.99008713]
[1729429628762,0.37744,2649.6,2649.5,6.52625198]
[1729429628962,0.37744,2649.6,2649.5,6.90369198]
[1729429629163,0.37744,2649.6,2649.5,6.52625198]
[1729429629370,0.37744,2649.6,2649.5,6.52628707]
[1729429629668,0.37744,2649.6,2649.5,5.53756485]
[1729429630368,0.37744,2649.6,2649.5,6.52633108]
[1729429630970,0.37744,2649.6,2649.5,5.53756485]
[1729429631363,0.37744,2649.6,2649.5,7.02204062]
[1729429633765,0.4185,2649.9,2649.5,7.79504062]
[1729429633971,0.37741,2649.8,2649.7,0.98902504]
[1729429634171,0.37741,2649.8,2649.7,1.38802504]
[1729429635068,0.37741,2649.8,2649.7,3.42025793]
[1729429637978,0.37739,2649.9,2649.7,3.79766793]
[1729429638280,0.37739,2649.9,2649.8,2.95461296]
[1729429638482,0.37739,2649.9,2649.8,2.95452398]
[1729429638690,3.2078,2650.1,2649.8,1.96527154]
[1729429638880,0.37739,2649.9,2649.8,0.4283]
[1729429639175,0.37739,2649.9,2649.8,1.96526714]
[1729429639485,0.37738,2650.0,2649.8,6.53957771]
[1729429639672,0.37738,2650.0,2649.9,0.98907405]
[1729429641163,0.37738,2650.0,2649.9,1.53671057]
[1729429641372,0.37738,2650.0,2649.9,2.52559454]
[1729429641572,0.37738,2650.0,2649.9,3.02118634]
[1729429642375,0.37738,2650.0,2649.9,3.02082041]
[1729429643171,0.4083,2650.2,2649.8,5.0022578]
[1729429643370,0.37738,2650.0,2649.8,5.0022578]
[1729429643675,0.4083,2650.2,2649.8,5.0022578]
[1729429643873,0.4083,2650.2,2649.8,4.6248678]
[1729429644070,0.37739,2649.9,2649.8,4.6248678]
[1729429645273,0.37739,2649.9,2649.8,4.0135]
[1729429645475,0.37739,2649.9,2649.8,4.6248678]
[1729429646577,0.37739,2649.9,2649.8,3.6361]
[1729429648581,0.37739,2650.0,2649.8,4.0135]
[1729429648884,0.37739,2649.9,2649.8,4.0135]
[1729429649184,0.37738,2650.0,2649.8,4.0135]
[1729429650277,0.37738,2650.0,2649.9,0.9887678]
[1729429652178,0.37737,2650.0,2649.9,0.9887678]
[1729429652792,0.4075,2650.1,2649.9,1.3661478]
[1729429652793,0.78487,2650.1,2649.9,1.3661478]
[1729429653283,0.4075,2650.1,2649.9,1.3661478]
[1729429653490,0.37737,2650.0,2649.9,0.9887678]
[1729429653990,0.37737,2650.1,2649.9,1.3661478]
[1729429654187,0.37737,2650.0,2649.9,1.3661578]
[1729429654392,41.74332,2650.4,2649.9,1.38037329]
[1729429654393,0.37737,2650.1,2649.9,1.38037329]
[1729429655285,41.74332,2650.4,2649.9,1.38037329]
[1729429655486,0.36315451,2650.0,2649.9,0.9887678]
[1729429660393,0.36315451,2650.0,2649.9,2.52415544]
[1729429660598,0.36315451,2650.0,2649.9,1.3661578]
[1729429661595,0.36315451,2650.0,2649.9,2.52436118]
[1729429661799,0.36315451,2650.0,2649.9,2.90175118]
[1729429662295,41.74332,2650.4,2649.9,2.90175999]
[1729429662491,0.37737,2650.0,2649.9,1.3661478]
[1729429662699,0.37737,2650.1,2649.9,1.91309751]
[1729429662899,0.37737,2650.1,2650.0,0.98834773]
[1729429663098,4.15108,2650.5,2650.0,0.98834773]
[1729429663501,0.37736,2650.1,2650.0,0.98834773]
[1729429665393,0.37736,2650.1,2649.9,3.58518]
[1729429665700,0.37736,2650.1,2649.9,0.37738]
[1729429666287,0.37736,2650.1,2649.9,3.58518]
[1729429667388,0.37736,2650.1,2649.9,4.57352773]
[1729429667902,0.37737,2650.0,2649.9,4.57352773]
[1729429668693,0.37737,2650.0,2649.9,1.36572773]
[1729429669090,0.9433,2650.4,2649.9,4.57352773]
[1729429669404,0.9433,2650.4,2649.9,1.36572773]
[1729429669405,0.37737,2650.1,2649.9,1.36572773]
[1729429670205,0.37737,2650.1,2649.9,4.57352773]
[1729429670407,0.37737,2650.1,2649.9,1.36572773]
[1729429670605,0.37737,2650.0,2649.9,4.57352773]
[1729429670809,0.37737,2650.0,2649.9,6.11024979]
[1729429670999,0.37737,2650.0,2649.9,2.90244979]
[1729429671197,0.37737,2650.0,2649.9,5.12190206]
[1729429672294,0.37737,2650.0,2649.9,6.60637783]
[1729429672803,0.37737,2650.0,2649.9,6.72436522]
[1729429673296,0.37737,2650.0,2649.9,7.22089985]
[1729429673998,0.37737,2650.0,2649.9,7.22090177]
[1729429674199,0.37737,2650.0,2649.9,10.29636257]
[1729429674600,0.37737,2650.0,2649.9,7.08856257]
[1729429675006,0.37737,2650.0,2649.9,10.29636257]
[1729429675610,0.37737,2650.0,2649.9,7.08856257]
[1729429675907,0.37737,2650.0,2649.9,10.29636257]
[1729429676407,0.37737,2650.0,2649.9,10.29636263]
[1729429676609,0.37737,2650.0,2649.9,7.22090183]
[1729429677216,0.37737,2650.0,2649.9,10.29709789]
[1729429677808,0.37737,2650.0,2649.9,7.08929789]
[1729429678114,0.9433,2650.4,2649.9,10.29709789]
[1729429678413,0.37737,2650.1,2650.0,1.65471143]
[1729429679914,0.37737,2650.1,2650.0,1.53672206]
[1729429680423,0.37737,2650.1,2650.0,2.52687995]
[1729429681213,44.95108,2650.5,2650.0,2.90423995]
[1729429681407,0.37736,2650.1,2650.0,0.99015789]
[1729429681608,0.37736,2650.1,2650.0,2.90615595]
[1729429681808,0.37736,2650.1,2650.0,2.52878595]
[1729429682007,0.37736,2650.1,2650.0,0.99015789]
[1729429682205,0.9433,2650.4,2649.9,4.19795789]
[1729429682514,0.9433,2650.4,2650.0,0.99015789]
[1729429682515,0.37736,2650.1,2650.0,0.99015789]
[1729429682910,0.37737,2650.0,2649.9,4.19795789]
[1729429683605,0.37737,2650.0,2649.8,0.99015789]
[1729429683606,3.7736,2650.0,2649.8,0.99015789]
[1729429683814,4.1512,2650.2,2649.9,0.99015789]
[1729429684012,0.37739,2649.9,2649.8,0.99015789]
[1729429684915,0.37739,2649.9,2649.7,1.48523683]
[1729429684916,0.3774,2649.8,2649.7,0.99015789]
[1729429685115,4.151,2649.8,2649.7,0.99015789]
[1729429685617,0.37742,2649.7,2649.6,0.99015789]
[1729429685819,0.37744,2649.5,2649.4,0.99015789]
[1729429686013,0.37746,2649.4,2649.3,4.19795789]
[1729429686405,0.37746,2649.4,2649.3,3.2078]
[1729429688320,4.15186,2649.4,2649.3,3.2078]
[1729429688611,3.7744,2649.4,2649.1,0.99015789]
[1729429688801,0.37749,2649.2,2649.1,0.99015789]
[1729429692721,0.94364,2649.5,2648.8,0.37753]
[1729429692906,0.37751,2649.1,2648.8,0.37753]
[1729429693110,0.94364,2649.5,2648.8,0.37753]
[1729429693306,0.37751,2649.1,2648.8,0.37753]
[1729429693518,0.94364,2649.5,2648.9,3.2078]
[1729429693818,0.37751,2649.1,2648.9,3.2078]
[1729429694220,0.3775,2649.2,2648.9,3.2078]
[1729429694412,0.3775,2649.2,2649.0,0.37751]
[1729429694613,0.94355,2649.7,2648.9,3.2078]
[1729429694816,0.9436,2649.6,2648.9,3.2078]
[1729429695026,0.37749,2649.2,2649.0,0.37751]
[1729429695821,0.37749,2649.2,2649.0,3.2078]
[1729429696425,0.37749,2649.2,2649.0,3.58531]
[1729429696920,0.37749,2649.2,2649.0,4.57304368]
[1729429697119,0.3775,2649.1,2649.0,4.19553368]
[1729429698312,0.3775,2649.1,2649.0,0.98773368]
[1729429700120,0.94363,2649.5,2649.0,0.98773368]
[1729429700324,0.3775,2649.1,2649.0,0.98773368]
[1729429700920,0.3775,2649.1,2649.0,4.19553368]
[1729429701924,0.3775,2649.1,2649.0,3.2078]
[1729429702714,0.3775,2649.1,2648.9,3.2078]
[1729429703217,0.94355,2649.7,2648.9,3.2078]
[1729429703417,0.37751,2649.0,2648.9,3.2078]
[1729429705527,0.37751,2649.1,2648.9,3.58533]
[1729429705731,0.37747,2649.4,2648.9,3.2078]
[1729429706023,1.2322,2649.7,2649.4,0.37745]
[1729429706215,1.2322,2649.7,2649.6,3.2078]
[1729429706216,0.387,2649.7,2649.6,3.2078]
[1729429706413,0.76442,2649.7,2649.6,3.2078]
[1729429706616,0.37742,2649.7,2649.6,3.2078]
[1729429707024,0.37742,2649.7,2649.5,0.78124]
[1729429707527,0.37742,2649.7,2649.6,0.4197]
[1729429708116,0.37741,2649.8,2649.6,4.00493]
[1729429708722,0.387,2650.0,2649.6,3.6275]
[1729429709030,0.37741,2649.8,2649.6,3.6275]
[1729429709421,0.387,2650.0,2649.6,3.6275]
[1729429709622,0.387,2650.0,2649.7,3.58521]
[1729429709623,0.3774,2649.9,2649.7,3.58521]
[1729429710021,0.3774,2649.9,2649.8,0.3932]
[1729429717438,0.3774,2649.9,2649.8,0.7706]
[1729429719536,0.3774,2649.9,2649.8,0.3932]
[1729429720239,0.3774,2649.9,2649.8,0.7706]
[1729429721139,0.3774,2649.9,2649.8,0.3932]
[1729429730056,0.3774,2649.9,2649.8,0.7706]
[1729429730649,0.3774,2649.9,2649.8,0.7987]
[1729429731261,3.2078,2650.3,2649.9,0.37738]
[1729429731458,0.37736,2650.1,2650.0,0.37737]
[1729429731650,0.37736,2650.2,2650.0,0.37737]
[1729429731851,0.37736,2650.1,2649.9,1.36510368]
[1729429732051,0.37736,2650.1,2650.0,0.3872]
[1729429741059,0.37736,2650.1,2650.0,1.37493368]
[1729429741772,1.2096,2650.4,2650.1,0.37736]
[1729429741962,0.37734,2650.2,2650.1,0.4032]
[1729429747577,0.37734,2650.2,2650.1,1.39093368]
[1729429747872,0.37734,2650.2,2650.1,0.4032]
[1729429748077,0.37736,2650.1,2650.0,0.98773368]
[1729429749468,0.37736,2650.1,2650.0,2.53914232]
[1729429750673,0.37736,2650.1,2650.0,3.03300917]
[1729429750874,0.37736,2650.1,2650.0,3.03355394]
[1729429754577,0.37736,2650.1,2650.0,1.55195341]
[1729429754970,0.37736,2650.1,2650.0,3.15482141]
[1729429755276,0.37736,2650.1,2650.0,1.55279317]
[1729429755475,0.37736,2650.1,2650.0,3.03684715]
[1729429755677,0.37736,2650.1,2650.0,1.55279317]
[1729429755880,0.37736,2650.1,2650.0,2.54219022]
[1729429756783,0.37736,2650.1,2650.0,3.03688875]
[1729429757672,0.8066,2650.4,2650.0,3.03688875]
[1729429757878,0.8066,2650.4,2650.1,2.5422124]
[1729429757879,0.37734,2650.2,2650.1,2.5422124]
[1729429758076,0.37734,2650.2,2650.1,2.9348124]
[1729429758270,0.37734,2650.2,2650.1,1.94543862]
[1729429759476,0.37734,2650.2,2650.1,2.32279862]
[1729429759877,0.37734,2650.2,2650.1,3.8068942]
[1729429760384,0.37733,2650.3,2650.2,0.37734]
[1729429760583,0.37733,2650.3,2650.2,1.36662704]
[1729429760882,0.37733,2650.3,2650.2,0.98928704]
[1729429761273,0.37733,2650.3,2650.2,1.36662704]
[1729429762078,0.37733,2650.3,2650.2,0.98928704]
[1729429762283,0.8066,2650.4,2650.1,1.75923704]
[1729429762284,0.37734,2650.2,2650.1,1.75923704]
[1729429762489,0.37734,2650.2,2650.1,3.42993598]
[1729429762979,0.37734,2650.2,2650.1,2.32267626]
[1729429763179,0.37734,2650.2,2650.1,2.44066341]
[1729429765186,0.37734,2650.2,2650.1,2.4407092]
[1729429765382,0.37734,2650.2,2650.1,3.42937189]
[1729429765883,0.37734,2650.2,2650.1,3.42938989]
[1729429766480,0.37734,2650.2,2650.1,3.54737563]
[1729429766686,0.37734,2650.2,2650.1,2.06334779]
[1729429766888,0.37734,2650.2,2650.1,3.54743761]
[1729429767080,0.37734,2650.2,2650.1,2.06334779]
[1729429767281,0.37734,2650.2,2650.1,2.44070639]
[1729429769191,0.37734,2650.2,2650.1,3.54753697]
[1729429769491,0.37734,2650.2,2650.1,3.4295693]
[1729429769684,0.37734,2650.2,2650.1,1.94536205]
[1729429769995,0.37734,2650.2,2650.1,3.43013542]
[1729429770886,0.37734,2650.2,2650.1,1.3822798]
[1729429771589,0.37734,2650.2,2650.1,2.9357891]
[1729429771981,0.37734,2650.2,2650.1,1.7964798]
[1729429772482,0.37734,2650.2,2650.1,3.3501453]
[1729429773590,0.37734,2650.2,2650.1,2.3604655]
[1729429774293,0.37734,2650.2,2650.1,3.35051132]
[1729429774488,0.37734,2650.2,2650.1,2.95791132]
[1729429774690,0.37734,2650.2,2650.1,2.95818717]
[1729429775394,0.37734,2650.2,2650.1,1.96814135]
[1729429775592,0.37734,2650.2,2650.1,3.03832232]
[1729429775790,0.37734,2650.2,2650.1,2.5443621]
[1729429776200,0.37734,2650.2,2650.1,0.99042075]
[1729429776390,0.37734,2650.2,2650.1,2.54489774]
[1729429777488,0.37734,2650.2,2650.1,1.6724698]
[1729429779493,0.37734,2650.2,2650.1,1.67272303]
[1729429781186,0.37734,2650.2,2650.1,1.67272512]
[1729429781392,4.15094,2650.2,2650.1,1.67272512]
[1729429782390,4.15094,2650.2,2650.1,3.1585666]
[1729429782696,4.15094,2650.2,2650.1,1.67272512]
[1729429783395,4.15094,2650.2,2650.1,3.15854547]
[1729429784392,4.15094,2650.2,2650.1,3.15842205]
[1729429785001,4.15094,2650.2,2650.1,3.04042778]
[1729429785589,4.15094,2650.2,2650.1,1.5546068]
[1729429786098,0.37736,2650.1,2650.0,0.99047149]
[1729429786298,0.77156,2650.1,2650.0,2.66300158]
[1729429787498,0.77156,2650.1,2650.0,1.10846772]
[1729429788496,0.77156,2650.1,2650.0,0.99047149]
[1729429792307,0.37736,2650.1,2650.0,0.99047149]